[Event "European Women's Chess Championship (49-84)"]
[Site "Batumi, Georgia"]
[Date "2026.05.25"]
[Round "1.51"]
[White "Schneider, Jana"]
[Black "Esadze, Tamari"]
[Result "1-0"]
[TimeControl "90min /40moves + 30min + 30-sec increment from move 1"]
[WhiteTitle "-"]
[BlackTitle "-"]
[WhiteFideId "12924997"]
[BlackFideId "13611186"]
[WhiteElo "2283"]
[BlackElo "1974"]

1. e4 {[%clk 01:30:53]} {[%emt 00:00:06]} c5 {[%clk 01:30:55]} {[%emt
00:00:06]} 2. Nf3 {[%clk 01:31:06]} {[%emt 00:00:17]} d6 {[%clk 01:31:19]}
{[%emt 00:00:06]} 3. Bb5+ {[%clk 01:31:26]} {[%emt 00:00:09]} Bd7 {[%clk
01:31:24]} {[%emt 00:00:26]} 4. Bxd7+ {[%clk 01:31:44]} {[%emt 00:00:12]} Qxd7
{[%clk 01:31:49]} {[%emt 00:00:05]} 5. O-O {[%clk 01:31:54]} {[%emt 00:00:19]}
Nc6 {[%clk 01:31:52]} {[%emt 00:00:28]} 6. Re1 {[%clk 01:31:53]} {[%emt
00:00:30]} Nf6 {[%clk 01:31:25]} {[%emt 00:00:57]} 7. c3 {[%clk 01:31:56]}
{[%emt 00:00:27]} e6 {[%clk 01:29:49]} {[%emt 00:02:07]} 8. d4 {[%clk
01:32:13]} {[%emt 00:00:13]} cxd4 {[%clk 01:29:43]} {[%emt 00:00:37]} 9. cxd4
{[%clk 01:32:33]} {[%emt 00:00:08]} d5 {[%clk 01:26:50]} {[%emt 00:03:24]} 10.
e5 {[%clk 01:32:51]} {[%emt 00:00:11]} Ne4 {[%clk 01:27:10]} {[%emt 00:00:10]}
11. a3 {[%clk 01:33:08]} {[%emt 00:00:14]} Be7 {[%clk 01:25:54]} {[%emt
00:01:46]} 12. Nbd2 {[%clk 01:33:11]} {[%emt 00:00:27]} Nxd2 {[%clk 01:24:21]}
{[%emt 00:02:03]} 13. Bxd2 {[%clk 01:33:30]} {[%emt 00:00:10]} O-O {[%clk
01:23:23]} {[%emt 00:01:30]} 14. Rc1 {[%clk 01:33:39]} {[%emt 00:00:19]} a5
{[%clk 01:18:15]} {[%emt 00:05:39]} 15. Rc3 {[%clk 01:32:09]} {[%emt 00:01:59]}
Na7 {[%clk 01:09:25]} {[%emt 00:09:21]} 16. Rd3 {[%clk 01:31:16]} {[%emt
00:01:23]} Nc8 {[%clk 01:05:55]} {[%emt 00:04:00]} 17. h4 {[%clk 01:30:37]}
{[%emt 00:01:08]} Nb6 {[%clk 00:59:17]} {[%emt 00:07:08]} 18. h5 {[%clk
01:29:02]} {[%emt 00:02:04]} Nc4 {[%clk 00:55:27]} {[%emt 00:04:22]} 19. Bc1
{[%clk 01:28:35]} {[%emt 00:00:57]} b5 {[%clk 00:44:15]} {[%emt 00:11:42]} 20.
Nh2 {[%clk 01:22:48]} {[%emt 00:06:16]} f6 {[%clk 00:35:15]} {[%emt 00:09:31]}
21. b3 {[%clk 01:06:22]} {[%emt 00:16:56]} Nxa3 {[%clk 00:25:02]} {[%emt
00:10:43]} 22. exf6 {[%clk 01:03:03]} {[%emt 00:03:48]} Rxf6 {[%clk 00:22:21]}
{[%emt 00:03:12]} 23. h6 {[%clk 01:02:33]} {[%emt 00:01:00]} g6 {[%clk
00:13:21]} {[%emt 00:09:30]} 24. Ng4 {[%clk 01:02:28]} {[%emt 00:00:35]} Rf5
{[%clk 00:12:18]} {[%emt 00:01:33]} 25. Rde3 {[%clk 01:01:17]} {[%emt
00:01:41]} Ra6 {[%clk 00:11:56]} {[%emt 00:00:53]} 26. Qe2 {[%clk 01:00:27]}
{[%emt 00:01:19]} Rb6 {[%clk 00:04:51]} {[%emt 00:07:35]} 27. Rxe6 {[%clk
00:57:35]} {[%emt 00:03:22]} Rxe6 {[%clk 00:05:16]} {[%emt 00:00:05]} 28. Qxe6+
{[%clk 00:58:00]} {[%emt 00:00:05]} Qxe6 {[%clk 00:05:45]} {[%emt 00:00:02]} 29.
Rxe6 {[%clk 00:58:21]} {[%emt 00:00:09]} Kf7 {[%clk 00:03:23]} {[%emt
00:02:51]} 30. Rxe7+ {[%clk 00:51:56]} {[%emt 00:06:54]} Kxe7 {[%clk 00:03:49]}
{[%emt 00:00:04]} 31. Bxa3+ {[%clk 00:52:20]} {[%emt 00:00:06]} b4 {[%clk
00:02:36]} {[%emt 00:01:44]} 32. Bb2 {[%clk 00:52:39]} {[%emt 00:00:11]} Rf8
{[%clk 00:02:03]} {[%emt 00:01:02]} 33. Kf1 {[%clk 00:52:00]} {[%emt 00:01:09]}
Ke6 {[%clk 00:00:40]} {[%emt 00:01:54]} 34. Ke2 {[%clk 00:51:17]} {[%emt
00:01:12]} Ra8 {[%clk 00:00:50]} {[%emt 00:00:21]} 35. Kd2 {[%clk 00:49:13]}
{[%emt 00:02:33]} Ra6 {[%clk 00:01:05]} {[%emt 00:00:16]} 36. f3 {[%clk
00:48:21]} {[%emt 00:01:21]} Ke7 {[%clk 00:01:04]} {[%emt 00:00:31]} 37. Ne5
{[%clk 00:47:54]} {[%emt 00:00:57]} Ke6 {[%clk 00:00:36]} {[%emt 00:00:59]} 38.
Bc1 {[%clk 00:47:44]} {[%emt 00:00:40]} Kf6 {[%clk 00:00:41]} {[%emt 00:00:25]}
39. Nd7+ {[%clk 00:47:22]} {[%emt 00:00:52]} Kf7 {[%clk 00:00:44]} {[%emt
00:00:26]} 40. Nc5 {[%clk 00:47:22]} {[%emt 00:00:30]} Rc6 {[%clk 00:00:36]}
{[%emt 00:00:39]} 41. Kd3 {[%clk 00:42:42]} {[%emt 00:05:09]} Kf6 {[%clk
00:28:58]} {[%emt 00:02:08]} 42. Bd2 {[%clk 01:09:33]} {[%emt 00:03:39]} Rc8
{[%clk 00:27:06]} {[%emt 00:02:23]} 43. Bf4 {[%clk 01:04:09]} {[%emt 00:05:53]}
g5 {[%clk 00:13:37]} {[%emt 00:13:59]} 44. Be5+ {[%clk 01:04:20]} {[%emt
00:00:19]} Kf7 {[%clk 00:13:01]} {[%emt 00:01:06]} 45. Ke2 {[%clk 01:02:12]}
{[%emt 00:02:38]} Rc6 {[%clk 00:11:26]} {[%emt 00:02:05]} 46. Bg7 {[%clk
00:57:47]} {[%emt 00:04:55]} Rc8 {[%clk 00:11:18]} {[%emt 00:00:38]} 47. Kf2
{[%clk 00:56:19]} {[%emt 00:01:58]} Re8 {[%clk 00:08:18]} {[%emt 00:03:30]} 48.
g3 {[%clk 00:55:03]} {[%emt 00:01:46]} Rc8 {[%clk 00:08:00]} {[%emt 00:00:49]}
49. Ke2 {[%clk 00:49:34]} {[%emt 00:05:59]} Re8+ {[%clk 00:07:48]} {[%emt
00:00:42]} 50. Kd2 {[%clk 00:49:58]} {[%emt 00:00:05]} Rc8 {[%clk 00:08:08]}
{[%emt 00:00:10]} 51. f4 {[%clk 00:48:37]} {[%emt 00:01:52]} gxf4 {[%clk
00:06:22]} {[%emt 00:02:17]} 52. gxf4 {[%clk 00:49:04]} {[%emt 00:00:02]} Kg6
{[%clk 00:06:45]} {[%emt 00:00:06]} 53. Nb7 {[%clk 00:48:10]} {[%emt 00:01:24]}
Rc3 {[%clk 00:02:44]} {[%emt 00:04:31]} 54. Nd6 {[%clk 00:47:40]} {[%emt
00:01:01]} Kh5 {[%clk 00:00:48]} {[%emt 00:02:26]} 55. f5 {[%clk 00:47:45]}
{[%emt 00:00:24]} Rxb3 {[%clk 00:00:36]} {[%emt 00:00:42]} 56. f6 {[%clk
00:47:44]} {[%emt 00:00:31]} Rf3 {[%clk 00:00:39]} {[%emt 00:00:27]} 57. f7
{[%clk 00:47:58]} {[%emt 00:00:15]} a4 {[%clk 00:01:01]} {[%emt 00:00:09]} 58.
f8=Q {[%clk 00:47:59]} {[%emt 00:00:30]} Rxf8 {[%clk 00:01:28]} {[%emt
00:00:03]} 59. Bxf8 {[%clk 00:48:23]} {[%emt 00:00:05]} a3 {[%clk 00:01:47]}
{[%emt 00:00:11]} 60. Kc2 {[%clk 00:48:43]} {[%emt 00:00:11]} 1-0

[Event "European Women's Chess Championship (49-84)"]
[Site "Batumi, Georgia"]
[Date "2026.05.25"]
[Round "1.52"]
[White "Avelino, Camila Biscaya"]
[Black "Velikic, Adela"]
[Result "0-1"]
[TimeControl "90min /40moves + 30min + 30-sec increment from move 1"]
[WhiteTitle "-"]
[BlackTitle "-"]
[WhiteFideId "1938975"]
[BlackFideId "913553"]
[WhiteElo "1937"]
[BlackElo "2277"]

1. e4 {[%clk 01:30:48]} {[%emt 00:00:11]} c5 {[%clk 01:30:56]} {[%emt
00:00:06]} 2. Nf3 {[%clk 01:31:03]} {[%emt 00:00:14]} d6 {[%clk 01:31:19]}
{[%emt 00:00:06]} 3. d4 {[%clk 01:31:21]} {[%emt 00:00:12]} cxd4 {[%clk
01:31:44]} {[%emt 00:00:06]} 4. Nxd4 {[%clk 01:31:37]} {[%emt 00:00:14]} Nf6
{[%clk 01:32:09]} {[%emt 00:00:04]} 5. Nc3 {[%clk 01:31:48]} {[%emt 00:00:20]}
a6 {[%clk 01:32:32]} {[%emt 00:00:07]} 6. Bc4 {[%clk 01:31:34]} {[%emt
00:00:44]} e6 {[%clk 01:32:46]} {[%emt 00:00:16]} 7. Bb3 {[%clk 01:31:40]}
{[%emt 00:00:24]} Nbd7 {[%clk 01:33:00]} {[%emt 00:00:16]} 8. f4 {[%clk
01:27:31]} {[%emt 00:04:39]} Nc5 {[%clk 01:33:07]} {[%emt 00:00:23]} 9. e5
{[%clk 01:25:20]} {[%emt 00:02:41]} Nfd7 {[%clk 01:33:09]} {[%emt 00:00:28]} 10.
exd6 {[%clk 01:01:41]} {[%emt 00:24:09]} Nf6 {[%clk 01:33:24]} {[%emt
00:00:15]} 11. Bc4 {[%clk 00:40:44]} {[%emt 00:21:28]} Bxd6 {[%clk 01:29:10]}
{[%emt 00:04:43]} 12. Be2 {[%clk 00:37:15]} {[%emt 00:03:59]} O-O {[%clk
01:16:55]} {[%emt 00:12:45]} 13. O-O {[%clk 00:35:04]} {[%emt 00:02:41]} Bd7
{[%clk 00:55:50]} {[%emt 00:21:35]} 14. Kh1 {[%clk 00:16:57]} {[%emt 00:18:37]}
Qc7 {[%clk 00:54:31]} {[%emt 00:01:48]} 15. Qe1 {[%clk 00:12:05]} {[%emt
00:05:22]} Rfe8 {[%clk 00:38:47]} {[%emt 00:16:15]} 16. b4 {[%clk 00:10:16]}
{[%emt 00:02:19]} Na4 {[%clk 00:37:08]} {[%emt 00:02:08]} 17. Nxa4 {[%clk
00:10:37]} {[%emt 00:00:09]} Bxa4 {[%clk 00:37:32]} {[%emt 00:00:07]} 18. c4
{[%clk 00:10:45]} {[%emt 00:00:22]} Rad8 {[%emt 00:14:36]} 19. Qc3 {[%clk
00:07:44]} Bd7 {[%clk 00:19:59]} {[%emt 00:07:26]} 20. c5 {[%clk 00:04:29]}
{[%emt 00:03:46]} e5 {[%clk 00:17:13]} {[%emt 00:03:16]} 21. Qd2 {[%clk
00:00:53]} {[%emt 00:04:06]} exd4 {[%clk 00:16:22]} {[%emt 00:01:20]} 22. cxd6
{[%clk 00:01:16]} {[%emt 00:00:08]} Qxd6 {[%clk 00:16:36]} {[%emt 00:00:15]} 23.
Bb2 {[%clk 00:00:37]} {[%emt 00:01:09]} Bc6 {[%clk 00:12:51]} {[%emt 00:04:15]}
24. Rad1 {[%clk 00:00:38]} {[%emt 00:00:29]} Ba4 {[%clk 00:11:31]} {[%emt
00:01:51]} 25. Rc1 {[%clk 00:00:33]} {[%emt 00:00:36]} Ne4 {[%clk 00:11:40]}
{[%emt 00:00:20]} 0-1

[Event "European Women's Chess Championship (49-84)"]
[Site "Batumi, Georgia"]
[Date "2026.05.25"]
[Round "1.53"]
[White "Mirzoeva, Elmira"]
[Black "Venskaya, Nika"]
[Result "1-0"]
[TimeControl "90min /40moves + 30min + 30-sec increment from move 1"]
[WhiteTitle "-"]
[BlackTitle "-"]
[WhiteFideId "4127951"]
[BlackFideId "13523503"]
[WhiteElo "2265"]
[BlackElo "1937"]

1. Nf3 {[%clk 01:30:55]} {[%emt 00:00:04]} Nf6 {[%clk 01:30:49]} {[%emt
00:00:11]} 2. c4 {[%clk 01:31:13]} {[%emt 00:00:13]} c5 {[%clk 01:30:39]}
{[%emt 00:00:39]} 3. b3 {[%clk 01:29:13]} {[%emt 00:02:30]} g6 {[%clk
01:29:14]} {[%emt 00:01:56]} 4. Bb2 {[%clk 01:29:22]} {[%emt 00:00:20]} Bg7
{[%clk 01:29:38]} {[%emt 00:00:06]} 5. g3 {[%clk 01:29:18]} {[%emt 00:00:34]}
b6 {[%clk 01:28:09]} {[%emt 00:02:00]} 6. Bg2 {[%clk 01:29:07]} {[%emt
00:00:39]} Bb7 {[%clk 01:28:35]} {[%emt 00:00:05]} 7. O-O {[%clk 01:28:34]}
{[%emt 00:01:03]} O-O {[%clk 01:27:35]} {[%emt 00:01:30]} 8. d4 {[%clk
01:27:06]} {[%emt 00:01:58]} Na6 {[%clk 01:16:47]} {[%emt 00:11:19]} 9. d5
{[%clk 01:23:33]} {[%emt 00:04:03]} d6 {[%clk 01:11:45]} {[%emt 00:05:31]} 10.
Nbd2 {[%clk 01:22:05]} {[%emt 00:01:58]} e6 {[%clk 01:08:46]} {[%emt 00:03:29]}
11. e4 {[%clk 01:15:48]} {[%emt 00:06:47]} exd5 {[%clk 01:07:49]} {[%emt
00:01:27]} 12. cxd5 {[%clk 01:02:36]} {[%emt 00:13:42]} Re8 {[%clk 01:05:26]}
{[%emt 00:02:53]} 13. Re1 {[%clk 00:59:17]} {[%emt 00:03:50]} b5 {[%clk
00:55:22]} {[%emt 00:10:34]} 14. Qb1 {[%clk 00:55:06]} {[%emt 00:04:40]} Rc8
{[%clk 00:44:58]} {[%emt 00:10:55]} 15. a4 {[%clk 00:51:35]} {[%emt 00:04:01]}
bxa4 {[%clk 00:39:47]} {[%emt 00:05:41]} 16. Rxa4 {[%clk 00:51:39]} {[%emt
00:00:25]} Nb4 {[%clk 00:35:21]} {[%emt 00:04:56]} 17. Rxa7 {[%clk 00:30:04]}
{[%emt 00:22:05]} Ba6 {[%clk 00:33:30]} {[%emt 00:02:22]} 18. Nc4 {[%clk
00:26:44]} {[%emt 00:03:50]} Rb8 {[%clk 00:28:26]} {[%emt 00:05:33]} 19. e5
{[%clk 00:18:13]} {[%emt 00:09:01]} Nfxd5 {[%clk 00:15:06]} {[%emt 00:13:50]}
20. Nxd6 {[%clk 00:18:17]} {[%emt 00:00:27]} Rf8 {[%clk 00:15:13]} {[%emt
00:00:22]} 21. Qd1 {[%clk 00:10:40]} {[%emt 00:08:07]} Nc7 {[%clk 00:13:40]}
{[%emt 00:02:04]} 22. e6 {[%clk 00:03:59]} {[%emt 00:07:11]} Nxe6 {[%clk
00:11:41]} {[%emt 00:02:29]} 23. Bxg7 {[%clk 00:04:23]} {[%emt 00:00:05]} Nxg7
{[%clk 00:11:40]} {[%emt 00:00:31]} 24. Ne5 {[%clk 00:04:05]} {[%emt 00:00:49]}
Nf5 {[%clk 00:02:13]} {[%emt 00:09:57]} 25. Nxf5 {[%clk 00:01:44]} {[%emt
00:02:50]} gxf5 {[%clk 00:02:42]} 26. Nd7 {[%clk 00:01:42]} {[%emt 00:00:33]}
Bb5 {[%clk 00:00:43]} {[%emt 00:02:28]} 27. Nxb8 {[%clk 00:01:32]} {[%emt
00:00:40]} Qxd1 {[%clk 00:00:35]} {[%emt 00:00:38]} 28. Rxd1 {[%clk 00:01:58]}
{[%emt 00:00:05]} Rxb8 {[%clk 00:00:58]} {[%emt 00:00:05]} 29. Rb7 {[%clk
00:01:10]} {[%emt 00:01:20]} Rxb7 {[%clk 00:01:23]} {[%emt 00:00:04]} 30. Bxb7
{[%clk 00:01:38]} {[%emt 00:00:02]} Bd3 {[%clk 00:01:47]} {[%emt 00:00:06]} 31.
Rc1 {[%clk 00:01:06]} {[%emt 00:01:00]} Bc2 {[%clk 00:02:14]} {[%emt 00:00:04]}
32. Bd5 {[%clk 00:00:54]} {[%emt 00:00:43]} Kf8 {[%clk 00:02:30]} {[%emt
00:00:15]} 33. Bc4 {[%clk 00:01:14]} {[%emt 00:00:08]} Be4 {[%clk 00:02:43]}
{[%emt 00:00:19]} 34. Ra1 {[%clk 00:01:35]} {[%emt 00:00:08]} Nc6 {[%clk
00:02:29]} {[%emt 00:00:44]} 35. f4 {[%clk 00:00:53]} {[%emt 00:01:13]} h6
{[%clk 00:02:10]} {[%emt 00:00:48]} 36. Kf2 {[%clk 00:01:14]} {[%emt 00:00:10]}
Ke7 {[%clk 00:02:26]} {[%emt 00:00:13]} 37. Ke3 {[%clk 00:01:28]} {[%emt
00:00:16]} f6 {[%clk 00:02:23]} {[%emt 00:00:34]} 38. Ra8 {[%clk 00:01:07]}
{[%emt 00:00:49]} Nd8 {[%clk 00:02:22]} {[%emt 00:00:33]} 39. Ra7+ {[%clk
00:00:38]} {[%emt 00:00:58]} Kf8 {[%clk 00:02:43]} {[%emt 00:00:10]} 40. Rc7
{[%clk 00:00:53]} {[%emt 00:00:12]} Nb7 {[%clk 00:03:10]} {[%emt 00:00:05]} 41.
Bd3 {[%clk 00:00:45]} {[%emt 00:00:37]} Bd5 {[%clk 00:02:59]} {[%emt 00:00:41]}
42. Bc4 {[%clk 00:29:29]} {[%emt 00:01:47]} Be4 {[%clk 00:32:48]} {[%emt
00:00:41]} 43. Rf7+ {[%clk 00:29:16]} {[%emt 00:00:43]} Ke8 {[%clk 00:33:08]}
{[%emt 00:00:10]} 44. Rxf6 {[%clk 00:29:37]} {[%emt 00:00:09]} Na5 {[%clk
00:33:31]} {[%emt 00:00:08]} 45. Rxh6 {[%clk 00:29:19]} {[%emt 00:00:48]} Nc6
{[%clk 00:33:54]} {[%emt 00:00:06]} 46. Bb5 {[%clk 00:29:41]} {[%emt 00:00:08]}
1-0

[Event "European Women's Chess Championship (49-84)"]
[Site "Batumi, Georgia"]
[Date "2026.05.25"]
[Round "1.54"]
[White "Rusitashvili, Tea"]
[Black "Urh, Zala"]
[Result "0-1"]
[TimeControl "90min /40moves + 30min + 30-sec increment from move 1"]
[WhiteTitle "-"]
[BlackTitle "-"]
[WhiteFideId "13640771"]
[BlackFideId "14611481"]
[WhiteElo "1929"]
[BlackElo "2263"]

1. e4 {[%clk 01:30:57]} {[%emt 00:00:02]} c5 {[%clk 01:30:53]} {[%emt
00:00:07]} 2. Nf3 {[%clk 01:31:22]} {[%emt 00:00:05]} g6 {[%clk 01:31:17]}
{[%emt 00:00:06]} 3. d4 {[%clk 01:31:38]} {[%emt 00:00:14]} cxd4 {[%clk
01:31:41]} {[%emt 00:00:06]} 4. Nxd4 {[%clk 01:32:03]} {[%emt 00:00:05]} Nc6
{[%clk 01:31:24]} {[%emt 00:00:47]} 5. c4 {[%clk 01:32:09]} {[%emt 00:00:25]}
Nf6 {[%clk 01:30:34]} {[%emt 00:01:19]} 6. Nc3 {[%clk 01:32:01]} {[%emt
00:00:39]} Nxd4 {[%clk 01:30:44]} {[%emt 00:00:19]} 7. Qxd4 {[%clk 01:32:19]}
{[%emt 00:00:12]} d6 {[%clk 01:31:07]} {[%emt 00:00:07]} 8. h3 {[%clk
01:30:59]} {[%emt 00:01:51]} Bg7 {[%clk 01:30:05]} {[%emt 00:01:31]} 9. Be3
{[%clk 01:30:37]} {[%emt 00:00:53]} O-O {[%clk 01:29:35]} {[%emt 00:00:59]} 10.
Qd2 {[%clk 01:29:16]} {[%emt 00:01:52]} a5 {[%clk 01:22:56]} {[%emt 00:07:08]}
11. Bd3 {[%clk 01:24:32]} {[%emt 00:05:14]} a4 {[%clk 01:19:15]} {[%emt
00:04:11]} 12. O-O {[%clk 01:20:32]} {[%emt 00:04:31]} Qa5 {[%clk 01:17:18]}
{[%emt 00:02:27]} 13. Rac1 {[%clk 01:15:29]} {[%emt 00:05:33]} Bd7 {[%clk
01:06:30]} {[%emt 00:11:18]} 14. Bh6 {[%clk 01:08:49]} {[%emt 00:07:09]} Rfc8
{[%clk 01:01:35]} {[%emt 00:05:25]} 15. Rfe1 {[%clk 01:03:02]} {[%emt
00:06:17]} Qb4 {[%clk 00:37:11]} {[%emt 00:24:54]} 16. Bxg7 {[%clk 00:54:53]}
{[%emt 00:08:39]} Kxg7 {[%clk 00:37:35]} {[%emt 00:00:07]} 17. Qe2 {[%clk
00:53:47]} {[%emt 00:01:35]} Rc5 {[%clk 00:25:28]} {[%emt 00:12:37]} 18. f4
{[%clk 00:44:25]} {[%emt 00:09:53]} Be6 {[%clk 00:19:37]} {[%emt 00:06:20]} 19.
Nb5 {[%clk 00:32:10]} {[%emt 00:12:45]} Rac8 {[%clk 00:17:05]} {[%emt
00:03:02]} 20. a3 {[%clk 00:29:39]} {[%emt 00:03:01]} Qa5 {[%clk 00:16:48]}
{[%emt 00:00:47]} 21. Red1 {[%clk 00:27:29]} {[%emt 00:02:40]} Qb6 {[%clk
00:10:37]} {[%emt 00:06:41]} 22. Kh2 {[%clk 00:24:19]} {[%emt 00:03:40]} Bd7
{[%clk 00:05:05]} {[%emt 00:06:03]} 23. Nc3 {[%clk 00:20:55]} {[%emt 00:03:54]}
Bc6 {[%clk 00:05:03]} {[%emt 00:00:32]} 24. Qf2 {[%clk 00:17:58]} {[%emt
00:03:17]} Rb5 {[%clk 00:00:55]} {[%emt 00:04:47]} 25. Qxb6 {[%clk 00:12:33]}
{[%emt 00:05:56]} Rxb6 {[%clk 00:01:21]} {[%emt 00:00:04]} 26. Rd2 {[%clk
00:12:47]} {[%emt 00:00:15]} Nd7 {[%clk 00:01:04]} {[%emt 00:00:48]} 27. Re1
{[%clk 00:09:07]} {[%emt 00:04:10]} Nc5 {[%clk 00:01:23]} {[%emt 00:00:10]} 28.
Bb1 {[%clk 00:09:17]} {[%emt 00:00:15]} Kf8 {[%clk 00:00:47]} {[%emt 00:01:11]}
29. Ree2 {[%clk 00:07:10]} {[%emt 00:02:36]} Ne6 {[%clk 00:00:40]} {[%emt
00:00:38]} 30. g3 {[%clk 00:05:58]} {[%emt 00:01:43]} Ra6 {[%clk 00:00:35]}
{[%emt 00:00:34]} 31. Rd1 {[%clk 00:04:09]} {[%emt 00:02:19]} Ra5 {[%clk
00:00:46]} {[%emt 00:00:19]} 32. Bc2 {[%emt 00:02:14]} Be8 {[%clk 00:00:54]} 33.
Bd3 {[%clk 00:02:51]} {[%emt 00:00:25]} Nc5 {[%clk 00:01:15]} {[%emt 00:00:09]}
34. Bb1 {[%clk 00:02:17]} {[%emt 00:01:04]} Bd7 {[%clk 00:00:56]} {[%emt
00:00:49]} 35. Nd5 {[%clk 00:01:52]} {[%emt 00:00:56]} Be6 {[%emt 00:01:27]} 36.
Ne3 {[%clk 00:01:08]} Nb3 {[%clk 00:01:01]} {[%emt 00:00:41]} 37. Bd3 {[%clk
00:01:20]} {[%emt 00:00:19]} f6 {[%clk 00:00:59]} {[%emt 00:00:31]} 38. Kg2
{[%clk 00:01:13]} {[%emt 00:00:37]} Rac5 {[%clk 00:00:56]} {[%emt 00:00:33]} 39.
g4 {[%clk 00:00:51]} {[%emt 00:00:53]} Na5 {[%clk 00:01:11]} {[%emt 00:00:14]}
40. Rc2 {[%clk 00:01:07]} {[%emt 00:00:14]} Bxc4 {[%clk 00:00:53]} {[%emt
00:00:48]} 41. Nxc4 {[%clk 00:00:46]} {[%emt 00:00:51]} Nxc4 {[%clk 00:27:36]}
{[%emt 00:03:48]} 42. Re2 {[%clk 00:29:12]} {[%emt 00:02:04]} R8c6 {[%clk
00:24:52]} {[%emt 00:03:13]} 43. Kf3 {[%clk 00:27:10]} {[%emt 00:02:31]} Rb6
{[%clk 00:23:32]} {[%emt 00:01:51]} 44. Bxc4 {[%clk 00:25:18]} {[%emt
00:02:23]} Rxc4 {[%clk 00:23:57]} {[%emt 00:00:05]} 45. Rd3 {[%clk 00:23:49]}
{[%emt 00:01:58]} Rb5 {[%clk 00:22:15]} {[%emt 00:02:12]} 46. Red2 {[%clk
00:22:04]} {[%emt 00:02:16]} Rc1 {[%clk 00:17:34]} {[%emt 00:05:10]} 47. Re2
{[%clk 00:19:22]} {[%emt 00:03:11]} Rb1 {[%clk 00:15:17]} {[%emt 00:02:48]} 48.
Rdd2 {[%clk 00:17:48]} {[%emt 00:02:04]} Rf1+ {[%clk 00:14:52]} {[%emt
00:00:55]} 49. Kg2 {[%clk 00:11:06]} {[%emt 00:07:13]} Rxf4 {[%clk 00:14:46]}
{[%emt 00:00:36]} 50. Rd4 {[%clk 00:11:33]} {[%emt 00:00:03]} Rb3 {[%clk
00:12:22]} {[%emt 00:02:53]} 51. Rxa4 {[%clk 00:11:41]} {[%emt 00:00:22]} Rff3
{[%clk 00:12:41]} {[%emt 00:00:11]} 52. Ra7 {[%clk 00:10:47]} {[%emt 00:01:23]}
Rg3+ {[%clk 00:12:42]} {[%emt 00:00:29]} 53. Kf1 {[%clk 00:08:41]} {[%emt
00:02:35]} Rxh3 {[%clk 00:13:04]} {[%emt 00:00:10]} 54. Rc2 {[%clk 00:08:06]}
{[%emt 00:01:00]} Rh1+ {[%clk 00:13:14]} {[%emt 00:00:25]} 55. Kg2 {[%clk
00:08:19]} {[%emt 00:00:18]} Rb1 {[%clk 00:13:39]} {[%emt 00:00:04]} 56. Ra8+
{[%clk 00:08:14]} {[%emt 00:00:35]} Kf7 {[%clk 00:13:56]} {[%emt 00:00:13]} 57.
Rh8 {[%clk 00:08:37]} {[%emt 00:00:07]} R1xb2 {[%clk 00:14:06]} {[%emt
00:00:20]} 0-1

[Event "European Women's Chess Championship (49-84)"]
[Site "Batumi, Georgia"]
[Date "2026.05.25"]
[Round "1.55"]
[White "Safarli, Josefine"]
[Black "Demirtas, Hafize"]
[Result "1-0"]
[TimeControl "90min /40moves + 30min + 30-sec increment from move 1"]
[WhiteTitle "-"]
[BlackTitle "-"]
[WhiteFideId "12900460"]
[BlackFideId "6382070"]
[WhiteElo "2253"]
[BlackElo "1928"]

1. e4 {[%clk 01:30:54]} {[%emt 00:00:04]} c6 {[%clk 01:30:55]} {[%emt
00:00:06]} 2. d4 {[%clk 01:31:20]} {[%emt 00:00:04]} d5 {[%clk 01:31:21]}
{[%emt 00:00:04]} 3. e5 {[%clk 01:31:43]} {[%emt 00:00:07]} Bf5 {[%clk
01:31:43]} {[%emt 00:00:09]} 4. Nf3 {[%clk 01:32:07]} {[%emt 00:00:05]} e6
{[%clk 01:32:07]} {[%emt 00:00:07]} 5. Be2 {[%clk 01:32:31]} {[%emt 00:00:05]}
c5 {[%clk 01:30:52]} {[%emt 00:01:45]} 6. Be3 {[%clk 01:32:23]} {[%emt
00:00:38]} Nc6 {[%clk 01:30:38]} {[%emt 00:00:45]} 7. dxc5 {[%clk 01:31:30]}
{[%emt 00:01:23]} Qc7 {[%clk 01:30:15]} {[%emt 00:00:52]} 8. O-O {[%clk
01:29:56]} {[%emt 00:02:04]} Nxe5 {[%clk 01:27:05]} {[%emt 00:03:40]} 9. Nxe5
{[%clk 01:29:19]} {[%emt 00:01:07]} Qxe5 {[%clk 01:27:29]} {[%emt 00:00:06]} 10.
Bb5+ {[%clk 01:29:39]} {[%emt 00:00:10]} Kd8 {[%clk 01:25:34]} {[%emt
00:02:25]} 11. Nc3 {[%clk 01:22:24]} {[%emt 00:07:45]} Ne7 {[%clk 00:30:30]}
{[%emt 00:55:34]} 12. Qd2 {[%clk 01:18:26]} {[%emt 00:04:28]} h6 {[%clk
00:27:29]} {[%emt 00:03:32]} 13. Bf4 {[%clk 01:15:25]} {[%emt 00:03:30]} Qf6
{[%clk 00:27:17]} {[%emt 00:00:42]} 14. Rfe1 {[%clk 01:15:34]} {[%emt
00:00:21]} Kc8 {[%clk 00:17:54]} {[%emt 00:09:54]} 15. Bg3 {[%clk 01:09:17]}
{[%emt 00:06:47]} Qg5 {[%clk 00:13:11]} {[%emt 00:05:12]} 16. Qd4 {[%clk
01:08:01]} {[%emt 00:01:46]} Bxc2 {[%clk 00:04:05]} {[%emt 00:09:35]} 17. Rac1
{[%clk 01:03:25]} {[%emt 00:05:07]} Nf5 {[%clk 00:01:28]} {[%emt 00:03:07]} 18.
Qb4 {[%clk 01:03:08]} {[%emt 00:00:47]} a5 {[%clk 00:01:20]} {[%emt 00:00:38]}
19. Bd7+ {[%clk 01:02:48]} {[%emt 00:00:51]} Kd8 {[%clk 00:00:45]} {[%emt
00:01:05]} 20. Qxb7 {[%clk 01:02:55]} {[%emt 00:00:23]} Nxg3 {[%clk 00:01:04]}
{[%emt 00:00:12]} 21. Qxa8+ {[%clk 01:02:41]} {[%emt 00:00:43]} Kxd7 {[%clk
00:01:27]} {[%emt 00:00:07]} 22. c6+ {[%clk 01:01:43]} {[%emt 00:01:28]} Kd6
{[%clk 00:00:38]} {[%emt 00:01:19]} 23. Nb5+ {[%clk 01:01:45]} {[%emt
00:00:28]} Ke7 {[%clk 00:00:42]} {[%emt 00:00:26]} 24. Rxc2 {[%clk 01:01:29]}
{[%emt 00:00:46]} Nf5 {[%clk 00:01:01]} {[%emt 00:00:11]} 25. c7 {[%clk
01:00:50]} {[%emt 00:01:09]} Kf6 {[%clk 00:01:12]} {[%emt 00:00:19]} 26. Qxa5
{[%clk 00:59:13]} {[%emt 00:02:07]} Kg6 {[%clk 00:00:37]} {[%emt 00:01:05]} 27.
Qc3 {[%clk 00:57:13]} {[%emt 00:02:30]} Be7 {[%clk 00:00:36]} {[%emt 00:00:31]}
28. Qd3 {[%clk 00:57:34]} {[%emt 00:00:09]} Bb4 {[%clk 00:00:36]} {[%emt
00:00:30]} 29. Rf1 {[%clk 00:57:42]} {[%emt 00:00:21]} 1-0